[Event "44th Chess Olympiad Open 2022"]
[Site "Chennai"]
[Date "2022.08.05"]
[Round "7.52"]
[White "Al-Sulaiti, Ghanem"]
[Black "Ahn, Hongjin"]
[Result "0-1"]
[ECO "B29"]
[WhiteElo "2183"]
[BlackElo "2303"]
[Annotator "TA"]
[PlyCount "44"]
[EventDate "2022.07.29"]
[EventType "team-tourn"]
[EventCountry "IND"]
[SourceTitle "playchess.com"]
[Source "ChessBase"]
[SourceQuality "1"]
[WhiteTeam "Qatar"]
[BlackTeam "Korea"]
[WhiteTeamCountry "QAT"]
[BlackTeamCountry "KOR"]
[TimeControl "40/5400+30:1800+30"]

{[%evp 9,44,29,27,36,36,-50,-42,-41,-31,-40,-31,-66,-67,-79,-74,-119,-101,-322,-306,-612,-583,-945,-631,-616,-456,-460,-466,-447,-356,-793,-822,-1337,-685,-716,-709,-665,-636]} 1. e4 {[%emt 0:00:04][%cal Be2e4,Be4e5][%mdl 32]} c5 {[%emt 0:00:06]} 2. Nf3 {[%emt 0:00:05]} Nf6 {[%emt 0:00:13][%cal Bg8f6,Bf6d5,Bd5b4][%mdl 32]} 3. e5 {[%emt 0:11:31]} Nd5 {[%emt 0:00:09]} 4. c4 {[%emt 0:00:39]} Nb4 {[%emt 0:02:23]} 5. a3 {[%emt 0:01:11]} N4c6 {[%emt 0:00:23]} 6. b4 {[%emt 0:00:33] B29: Sicilian: 2 Nf3 Nf6 (Nimzowitsch Variation).} d6 {[%emt 0:03:22] [#]} 7. Bb2 $146 {[%emt 0:08:56]} (7. exd6 $1 $14 exd6 8. Nc3) ({Predecessor:} 7. exd6 exd6 8. b5 Ne5 9. Nxe5 dxe5 10. Bb2 Bd6 11. g3 O-O 12. Bg2 Nd7 13. O-O {½-½ (27) Grover,S (2310)-Souleidis,G (2435) Paleochora 2009}) 7... Nxe5 {[%emt 0:07:53]} 8. Nxe5 {[%emt 0:20:25] Black is slightly better.} dxe5 {[%emt 0:00:05]} 9. b5 {[%emt 0:01:59] Prevents Nc6.} Nd7 {[%emt 0:08:02]} 10. Bd3 {[%emt 0:00:27]} g6 {[%emt 0:01:24]} 11. Qe2 $1 {[%emt 0:04:03]} Bg7 {[%emt 0:00:40]} 12. h4 {[%emt 0:01:49]} h5 {[%emt 0:16:21]} 13. f4 $2 {[%emt 0:03:13]} (13. Bc2 $17) 13... O-O $19 {[%emt 0:02:15] [#] Hoping for ...e4.} 14. f5 $2 {[%emt 0:00:11]} (14. Qf2) 14... e4 {[%emt 0:04:32]} 15. fxg6 {[%emt 0:00:26]} exd3 {[%emt 0:05:45]} 16. Qxh5 {[%emt 0:00:55][%csl Gg6][%cal Rh5h7]} fxg6 {[%emt 0:00:28]} 17. Qxg6 {[%emt 0:01:34][%csl Gb2][%cal Rg6g7] [#]} e5 {[%emt 0:02:17] White must now prevent ...Nb6.} ({Avoid the trap} 17... Nf6 $2 18. O-O $19) 18. Qxd3 {[%emt 0:03:40]} Nf6 {[%emt 0:01:15][%cal Bd7f6,Bf6g4,Bg4f2,Bf2d3][%mdl 32]} 19. Qe3 {[%emt 0:03:47]} (19. Qxd8 Rxd8 20. a4) 19... Ng4 {[%emt 0:01:22] Black is clearly winning.} 20. Qxc5 {[%emt 0:00:00]} Nf2 {[%emt 0:00:41] ( -> ...Nd3+)} 21. O-O {[%emt 0:00:00]} Nd3 {[%emt 0:01:49]} 22. Rxf8+ {[%emt 0:00:27]} Bxf8 {[%emt 0:00:14] White did not feel at home in the position after the opening.  Weighted Error Value: White=1.33/Black=0.62} 0-1

[Event "44th Chess Olympiad Open 2022"]
[Site "Chennai"]
[Date "2022.08.05"]
[Round "7.52"]
[White "Li, Georgiy"]
[Black "Al-Homaid, Abdulla"]
[Result "1-0"]
[ECO "C47"]
[WhiteElo "1994"]
[BlackElo "1358"]
[Annotator "TA"]
[PlyCount "97"]
[EventDate "2022.07.29"]
[EventType "team-tourn"]
[EventCountry "IND"]
[SourceTitle "playchess.com"]
[Source "ChessBase"]
[SourceQuality "1"]
[WhiteTeam "Korea"]
[BlackTeam "Qatar"]
[WhiteTeamCountry "KOR"]
[BlackTeamCountry "QAT"]
[TimeControl "40/5400+30:1800+30"]

{[%evp 10,97,29,36,113,115,104,68,137,133,139,123,150,63,73,75,75,58,121,89,97,78,90,83,78,47,51,45,51,48,57,29,36,6,9,7,12,-4,0,-47,-14,-29,-18,-29,0,-24,0,0,0,0,0,0,100,100,94,95,95,102,110,115,143,98,166,93,156,167,429,429,452,450,479,466,511,507,693,682,645,518,840,819,874,860,856,879,1923,1883,29985,29980,29984,29985]} 1. e4 {[%emt 0:00:10]} e5 {[%emt 0:00:10]} 2. Nf3 {[%emt 0:00:09]} Nc6 {[%emt 0:00:06]} 3. Be2 {[%emt 0:00:21]} Nf6 {[%emt 0:00:34]} 4. Nc3 {[%emt 0:00:11]} Bc5 {[%emt 0:02:26]} 5. Nxe5 {[%emt 0:00:23]} Nxe5 {[%emt 0:00:51]} 6. d4 {[%emt 0:00:13]} Bxd4 {[%emt 0:03:22] C47: Scotch Four Knights and Four Knights with 4 g3.} 7. Qxd4 $16 {[%emt 0:00:16]} Nc6 {[%emt 0:00:31]} 8. Qa4 {[%emt 0:01:26] [#] White is more active.} d6 $146 {[%emt 0:02:20]} ({Black should play} 8... h6 $1 $14) ({Predecessor:} 8... O-O 9. Bg5 a6 10. Nd5 b5 11. Qb3 Nd4 12. Qd3 Ne6 13. Bh4 c6 14. e5 cxd5 15. exf6 gxf6 16. Qxd5 {1-0 (36) Woellenstein,S (906)-Lesche,M (745) Bad Homburg 2013}) 9. Bg5 {[%emt 0:00:26][%cal Bc1g5,Bg5h4,Bh4g3][%mdl 32]} h6 {[%emt 0:04:09]} 10. Bh4 {[%emt 0:00:16]} Bd7 {[%emt 0:05:12]} 11. Nd5 {[%emt 0:00:35]} ({White should try} 11. O-O-O $1 $16) 11... g5 $14 {[%emt 0:00:40]} 12. Bg3 {[%emt 0:00:34]} Nxd5 {[%emt 0:16:04]} 13. exd5 {[%emt 0:00:29]} Ne5 {[%emt 0:00:39]} (13... Ne7 $14 14. Qb3 O-O) 14. Qb3 {[%emt 0:00:57]} b6 {[%emt 0:09:14]} 15. O-O {[%emt 0:02:00]} O-O {[%emt 0:14:35]} 16. f4 {[%emt 0:01:04]} Ng6 {[%emt 0:01:52]} 17. fxg5 {[%emt 0:00:41]} hxg5 {[%emt 0:03:49]} 18. Bh5 {[%emt 0:02:15]} Kh7 {[%emt 0:05:13]} 19. Qc3 {[%emt 0:01:52] aiming for Rf6.} f5 {[%emt 0:03:34]} 20. Rae1 {[%emt 0:05:02]} Rc8 $1 {[%emt 0:04:53][%cal Ba8c8,Bc8e8,Be8e7][%mdl 32]} 21. Qd3 {[%emt 0:11:26]} Qf6 {[%emt 0:03:07]} 22. c3 {[%emt 0:03:24]} a5 {[%emt 0:04:35]} 23. Qd1 {[%emt 0:05:34]} Rce8 {[%emt 0:00:57]} 24. Be2 {[%emt 0:01:08] Against Bb5} (24. Bf2 $11) 24... Re7 {[%emt 0:00:46]} 25. Bf2 {[%emt 0:02:38]} Rfe8 {[%emt 0:01:14]} 26. Bd4 {[%emt 0:00:20]} Qf8 {[%emt 0:01:15]} 27. g3 {[%emt 0:02:03]} Re4 {[%emt 0:02:07]} 28. Bd3 {[%emt 0:01:59] This bishop pair is nice.} Rxe1 {[%emt 0:00:27]} 29. Rxe1 {[%emt 0:00:08]} Rxe1+ {[%emt 0:00:15]} 30. Qxe1 {[%emt 0:00:07]} Qe7 {[%emt 0:00:19] [#]} (30... Ne5 $1 $11 31. Bxe5 Qe7) 31. Qxe7+ $1 $16 {[%emt 0:00:54] White stays focused until the end.} Nxe7 {[%emt 0:00:10][%mdl 4096] Endgame [#] KBB-KBN} 32. Bf6 $1 {[%emt 0:00:21][%csl LRe7,LRg5]} Nxd5 {[%emt 0:00:16]} 33. Bxg5 {[%emt 0:00:16]} Kg6 {[%emt 0:00:57]} 34. Bd8 {[%emt 0:00:30]} b5 {[%emt 0:05:13]} 35. Kf2 {[%emt 0:00:39]} a4 {[%emt 0:00:46]} (35... Kf7 $16) 36. h4 {[%emt 0:00:23]} (36. g4 $1 $18) 36... c5 {[%emt 0:00:44]} (36... Kf7 $142) 37. g4 $1 {[%emt 0:01:02][%cal Bg3g4,Bg4f5][%mdl 32]} b4 $2 {[%emt 0:02:37]} (37... a3 {keeps fighting.}) 38. gxf5+ $18 {[%emt 0:00:28]} Kg7 {[%emt 0:02:23]} 39. c4 {[%emt 0:01:21]} Nf6 {[%emt 0:00:26]} 40. Kf3 {[%emt 0:02:29]} Bc6+ {[%emt 0:00:55]} 41. Kf4 {[%emt 0:30:55]} Be8 {[%emt 0:30:36]} 42. Be7 {[%emt 0:01:09]} d5 {[%emt 0:00:00]} 43. Ke5 {[%emt 0:00:00]} Nd7+ {[%emt 0:00:00]} (43... Ng8 $142 44. Bxc5 Nf6) 44. Kxd5 {[%emt 0:00:00]} Bf7+ {[%emt 0:00:00]} 45. Kd6 {[%emt 0:00:00]} Be8 {[%emt 0:00:00]} 46. Bg5 {[%emt 0:00:00] And now Ke7 would win.} b3 {[%emt 0:00:00]} 47. axb3 {[%emt 0:00:00] Black must now prevent Ke7.} axb3 {[%emt 0:00:00]} 48. h5 {[%emt 0:00:00]} Nf6 {[%emt 0:00:00]} 49. Ke7 {[%emt 0:00:00] Weighted Error Value: White=0.15 (very precise) /Black=0.49} 1-0

[Event "44th Chess Olympiad Open 2022"]
[Site "Chennai"]
[Date "2022.08.05"]
[Round "7.52"]
[White "Erfan Mohamad Firdaus"]
[Black "Kim, Changhoon"]
[Result "1-0"]
[ECO "B27"]
[WhiteElo "1294"]
[BlackElo "1827"]
[Annotator "NA RC COMBH"]
[PlyCount "161"]
[EventDate "2022.07.29"]
[EventType "team-tourn"]
[EventCountry "IND"]
[SourceTitle "playchess.com"]
[Source "ChessBase"]
[SourceQuality "1"]
[WhiteTeam "Qatar"]
[BlackTeam "Korea"]
[WhiteTeamCountry "QAT"]
[BlackTeamCountry "KOR"]
[TimeControl "40/5400+30:1800+30"]

1. e4 {[%emt 0:00:13]} c5 {[%emt 0:00:12]} 2. Nf3 {[%emt 0:00:12]} g6 {[%emt 0:02:35]} 3. d4 {[%emt 0:00:40]} cxd4 {[%emt 0:00:05]} 4. Qxd4 {[%emt 0:00:09]} Nf6 {[%emt 0:00:07]} 5. Nc3 {[%emt 0:00:21]} Nc6 {[%emt 0:00:13]} 6. Qa4 {[%emt 0:01:04]} d6 {[%emt 0:00:30]} 7. e5 {[%emt 0:00:51]} dxe5 {[%emt 0:00:16]} 8. Nxe5 {[%emt 0:00:10]} Bd7 {[%emt 0:00:46]} 9. Nxd7 {[%emt 0:00:33]} Qxd7 {[%emt 0:00:03]} 10. Be3 {[%emt 0:00:47]} Bg7 {[%emt 0:00:38]} 11. Rd1 {[%emt 0:00:24]} Qc8 {[%emt 0:01:57]} 12. Be2 {[%emt 0:00:29]} O-O {[%emt 0:00:14]} 13. O-O {[%emt 0:00:16]} a6 {[%emt 0:01:47]} 14. Rfe1 {[%emt 0:04:00]} b5 {[%emt 0:00:38]} 15. Qh4 {[%emt 0:01:15]} Re8 {[%emt 0:08:08]} 16. Bf3 {[%emt 0:03:56]} Rb8 {[%emt 0:01:49]} 17. Bf4 {[%emt 0:23:07]} Rb7 {[%emt 0:01:44]} 18. Nb1 {[%emt 0:04:07]} Rd7 {[%emt 0:07:13]} 19. c3 {[%emt 0:06:27]} Na5 {[%emt 0:04:42]} 20. Nd2 {[%emt 0:04:30]} Red8 {[%emt 0:01:30]} 21. Nf1 {[%emt 0:02:24]} Nc4 {[%emt 0:01:58]} 22. Bc1 {[%emt 0:01:27]} Qc7 {[%emt 0:04:55]} 23. Ne3 {[%emt 0:00:56]} Ne5 {[%emt 0:01:42]} 24. Be2 {[%emt 0:00:58]} Nd3 {[%emt 0:01:12]} 25. Bxd3 {[%emt 0:00:57]} Rxd3 {[%emt 0:00:05]} 26. Rxd3 {[%emt 0:01:19]} Rxd3 {[%emt 0:00:05]} 27. Rd1 {[%emt 0:00:25]} Qd6 {[%emt 0:08:24]} 28. Re1 {[%emt 0:04:59]} h5 {[%emt 0:01:13]} 29. Qb4 {[%emt 0:05:21]} Qxb4 {[%emt 0:19:24]} 30. cxb4 {[%emt 0:00:13]} e5 {[%emt 0:07:39]} 31. Rd1 {[%emt 0:03:47]} Rxd1+ {[%emt 0:01:21]} 32. Nxd1 {[%emt 0:00:13]} Nd5 {[%emt 0:00:02]} 33. Bd2 {[%emt 0:04:12]} e4 {[%emt 0:01:26]} 34. a3 {[%emt 0:01:15]} f5 {[%emt 0:00:12]} 35. b3 {[%emt 0:02:27]} Kf7 {[%emt 0:00:17]} 36. Kf1 {[%emt 0:00:21]} Ke6 {[%emt 0:00:17]} 37. Bc1 {[%emt 0:01:46]} f4 {[%emt 0:01:25]} 38. Ke2 {[%emt 0:01:29]} g5 {[%emt 0:03:46]} 39. h3 {[%emt 0:00:57]} Bd4 {[%emt 0:00:48]} 40. f3 {[%emt 0:02:17]} e3 {[%emt 0:01:18]} 41. Kd3 {[%emt 0:30:26]} Ke5 {[%emt 0:30:32]} 42. Bb2 {[%emt 0:00:59]} Bxb2 {[%emt 0:00:25]} 43. Nxb2 {[%emt 0:00:03]} Ne7 {[%emt 0:06:12]} 44. Kc3 {[%emt 0:02:54]} Nf5 {[%emt 0:00:40]} 45. Nd3+ {[%emt 0:00:32]} Kd5 {[%emt 0:00:21]} 46. Ne1 {[%emt 0:04:07]} Nh4 {[%emt 0:00:16]} 47. Kd3 {[%emt 0:00:33]} Ng6 {[%emt 0:00:33]} 48. Nc2 {[%emt 0:01:36]} Ne5+ {[%emt 0:00:42]} 49. Kc3 {[%emt 0:00:18]} Nc6 {[%emt 0:00:37]} 50. Ne1 {[%emt 0:01:48]} Nd4 {[%emt 0:01:27]} 51. Nd3 {[%emt 0:00:30]} Ne2+ {[%emt 0:00:55]} 52. Kc2 {[%emt 0:00:29]} Ng3 {[%emt 0:04:35]} 53. h4 {[%emt 0:03:14]} gxh4 {[%emt 0:01:11]} 54. Nxf4+ {[%emt 0:00:36]} Ke5 {[%emt 0:04:22]} 55. Nd3+ {[%emt 0:01:48]} Kd4 {[%emt 0:00:10]} 56. Nf4 {[%emt 0:00:34]} Ke5 {[%emt 0:00:00]} 57. Nd3+ {[%emt 0:00:00]} Kd5 {[%emt 0:00:00]} 58. Nc1 {[%emt 0:00:00]} Kd4 {[%emt 0:00:00]} 59. Kd1 {[%emt 0:00:00]} h3 {[%emt 0:00:00]} 60. gxh3 {[%emt 0:00:00]} Nf5 {[%emt 0:00:00]} 61. Kc2 {[%emt 0:00:00]} Ke5 {[%emt 0:00:00]} 62. Ne2 {[%emt 0:00:00]} Nh4 {[%emt 0:03:00]} 63. Kd3 {[%emt 0:00:00]} Ng2 {[%emt 0:00:06]} 64. h4 {[%emt 0:00:00]} Kf5 {[%emt 0:00:17]} 65. a4 {[%emt 0:00:00]} Ke5 {[%emt 0:00:25]} 66. axb5 {[%emt 0:00:00]} axb5 {[%emt 0:00:04]} 67. Nd4 {[%emt 0:00:00]} Kf4 {[%emt 0:02:02]} 68. Nxb5 {[%emt 0:00:00]} Ne1+ {[%emt 0:00:32]} 69. Ke2 {[%emt 0:04:51]} Nxf3 {[%emt 0:00:12]} 70. Kd1 {[%emt 0:00:47]} Nd2 {[%emt 0:02:08]} 71. Nd4 {[%emt 0:02:07]} Ne4 {[%emt 0:00:42]} 72. b5 {[%emt 0:01:07]} Nc3+ {[%emt 0:00:17]} 73. Kc2 {[%emt 0:00:52]} Nd5 {[%emt 0:00:43]} 74. Kd3 {[%emt 0:01:04]} Nb6 {[%emt 0:00:17]} 75. Nc2 {[%emt 0:00:32]} Nd5 {[%emt 0:00:42]} 76. Nxe3 {[%emt 0:00:21]} Nxe3 {[%emt 0:00:44]} 77. Kd4 {[%emt 0:01:07]} Nc2+ {[%emt 0:00:34]} 78. Kc5 {[%emt 0:00:10]} Ke5 {[%emt 0:00:24]} 79. b6 {[%emt 0:00:20]} Nd4 {[%emt 0:00:19]} 80. b7 {[%emt 0:00:35]} Ne6+ {[%emt 0:00:19]} 81. Kb6 {[%emt 0:00:20]} 1-0

[Event "44th Chess Olympiad Open 2022"]
[Site "Chennai"]
[Date "2022.08.05"]
[Round "7.53"]
[White "Dornbusch, Tatiana"]
[Black "Uapingene, Uatiavi Jossy"]
[Result "1/2-1/2"]
[ECO "B13"]
[WhiteElo "2247"]
[BlackElo "1798"]
[Annotator "NA RC"]
[PlyCount "162"]
[EventDate "2022.07.29"]
[EventType "team-tourn"]
[EventCountry "IND"]
[SourceTitle "playchess.com"]
[Source "ChessBase"]
[SourceQuality "1"]
[WhiteTeam "Monaco"]
[BlackTeam "Namibia"]
[WhiteTeamCountry "MNC"]
[BlackTeamCountry "NAM"]
[TimeControl "40/5400+30:1800+30"]

1. d4 {[%emt 0:00:16]} Nf6 {[%emt 0:00:54]} 2. Bg5 {[%emt 0:01:45]} d5 {[%emt 0:01:14]} 3. Bxf6 {[%emt 0:02:09]} gxf6 {[%emt 0:00:22]} 4. c4 {[%emt 0:05:45]} dxc4 {[%emt 0:05:07]} 5. e3 {[%emt 0:01:28]} c5 {[%emt 0:02:35]} 6. Nc3 {[%emt 0:01:54]} cxd4 {[%emt 0:01:38]} 7. exd4 {[%emt 0:00:49]} Nc6 {[%emt 0:09:36]} 8. d5 {[%emt 0:07:28]} Ne5 {[%emt 0:00:34]} 9. Bxc4 {[%emt 0:01:00]} Nxc4 {[%emt 0:03:18]} 10. Qa4+ {[%emt 0:00:05]} Bd7 {[%emt 0:00:11]} 11. Qxc4 {[%emt 0:00:03]} Qb6 {[%emt 0:00:27]} 12. Nge2 {[%emt 0:02:57]} Rg8 {[%emt 0:11:13]} 13. O-O {[%emt 0:01:30]} Rg4 {[%emt 0:00:06]} 14. Qd3 {[%emt 0:02:03]} f5 {[%emt 0:04:43]} 15. h3 {[%emt 0:07:04]} Rg8 {[%emt 0:05:55]} 16. Rfe1 {[%emt 0:07:17]} Bh6 {[%emt 0:06:18]} 17. Nd4 {[%emt 0:06:24]} Qg6 {[%emt 0:03:01]} 18. Qf3 {[%emt 0:00:33]} Bd2 {[%emt 0:05:32]} 19. Re2 {[%emt 0:04:29]} Bf4 {[%emt 0:08:42]} 20. Rae1 {[%emt 0:02:47]} Bd6 {[%emt 0:03:22]} 21. Ncb5 {[%emt 0:01:56]} Kf8 {[%emt 0:05:37]} 22. Nxd6 {[%emt 0:02:04]} exd6 {[%emt 0:00:20]} 23. g3 {[%emt 0:06:47]} Qf6 {[%emt 0:03:37]} 24. Qf4 {[%emt 0:08:22]} Rc8 {[%emt 0:03:26]} 25. Kh2 {[%emt 0:08:05]} Rc5 {[%emt 0:00:47]} 26. g4 {[%emt 0:13:33]} Rxd5 {[%emt 0:03:42]} 27. Nxf5 {[%emt 0:01:26]} Bxf5 {[%emt 0:00:30]} 28. gxf5 {[%emt 0:00:25]} Rg5 {[%emt 0:01:44]} 29. h4 {[%emt 0:01:56]} Rg6 {[%emt 0:01:45]} 30. Rg1 {[%emt 0:02:16]} Rxf5 {[%emt 0:01:45]} 31. Rxg6 {[%emt 0:00:38]} Qxg6 {[%emt 0:00:05]} 32. Qd4 {[%emt 0:00:30]} Qf6 {[%emt 0:00:22]} 33. Qxf6 {[%emt 0:00:36]} Rxf6 {[%emt 0:00:06]} 34. Kg3 {[%emt 0:00:11]} Re6 {[%emt 0:02:56]} 35. Rc2 {[%emt 0:00:08]} Re7 {[%emt 0:00:05]} 36. Rc8+ {[%emt 0:00:32]} Re8 {[%emt 0:01:29]} 37. Rc7 {[%emt 0:00:06]} Re7 {[%emt 0:00:03]} 38. Rc8+ {[%emt 0:00:03]} Kg7 {[%emt 0:00:10]} 39. Kf3 {[%emt 0:01:47]} Rd7 {[%emt 0:03:31]} 40. Ke4 {[%emt 0:00:16]} d5+ {[%emt 0:00:11]} 41. Kd4 {[%emt 0:30:16]} Kh6 {[%emt 0:30:26]} 42. Rg8 {[%emt 0:00:00]} Rd6 {[%emt 0:00:00]} 43. Rb8 {[%emt 0:00:00]} Rb6 {[%emt 0:00:00]} 44. b3 {[%emt 0:00:00]} Rb5 {[%emt 0:00:00]} 45. Rg8 {[%emt 0:00:00]} a5 {[%emt 0:00:00]} 46. Rg3 {[%emt 0:00:00]} a4 {[%emt 0:00:00]} 47. bxa4 {[%emt 0:00:00]} Rb4+ {[%emt 0:00:00]} 48. Kxd5 {[%emt 0:00:00]} Rxa4 {[%emt 0:00:00]} 49. a3 {[%emt 0:01:24]} Rxh4 {[%emt 0:00:00]} 50. Rb3 {[%emt 0:00:46]} Ra4 {[%emt 0:00:00]} 51. Rxb7 {[%emt 0:01:20]} Rxa3 {[%emt 0:00:00]} 52. Rxf7 {[%emt 0:00:05]} Kg6 {[%emt 0:00:00]} 53. Rf8 {[%emt 0:00:10]} Kg7 {[%emt 0:00:00]} 54. Rb8 {[%emt 0:01:50]} Rf3 {[%emt 0:00:00]} 55. Rb2 {[%emt 0:00:04]} Kg6 {[%emt 0:00:00]} 56. Ke4 {[%emt 0:00:08]} Rf6 {[%emt 0:00:00]} 57. f4 {[%emt 0:00:25]} Re6+ {[%emt 0:00:52]} 58. Kf3 {[%emt 0:00:12]} Kf6 {[%emt 0:00:19]} 59. Kg4 {[%emt 0:00:28]} Ra6 {[%emt 0:00:14]} 60. Rb7 {[%emt 0:00:32]} Kg6 {[%emt 0:00:47]} 61. Rb5 {[%emt 0:00:28]} Rc6 {[%emt 0:01:54]} 62. Rg5+ {[%emt 0:00:05]} Kf6 {[%emt 0:00:52]} 63. Rh5 {[%emt 0:00:12]} Rc7 {[%emt 0:00:50]} 64. Rh6+ {[%emt 0:00:04]} Kg7 {[%emt 0:00:07]} 65. Ra6 {[%emt 0:00:09]} Rc5 {[%emt 0:01:32]} 66. f5 {[%emt 0:00:25]} Rc7 {[%emt 0:01:37]} 67. Kg5 {[%emt 0:00:17]} Kf7 {[%emt 0:00:16]} 68. Rh6 {[%emt 0:01:12]} Kg8 {[%emt 0:01:00]} 69. Rh2 {[%emt 0:00:59]} Ra7 {[%emt 0:00:59]} 70. Rb2 {[%emt 0:01:03]} Kf7 {[%emt 0:00:16]} 71. Rb6 {[%emt 0:00:25]} Rc7 {[%emt 0:00:20]} 72. Kh6 {[%emt 0:00:25]} Rc5 {[%emt 0:00:15]} 73. Kg5 {[%emt 0:00:13]} Rc7 {[%emt 0:00:09]} 74. Rb5 {[%emt 0:00:09]} Ra7 {[%emt 0:00:59]} 75. Rc5 {[%emt 0:00:14]} Rb7 {[%emt 0:00:10]} 76. f6 {[%emt 0:00:23]} Ra7 {[%emt 0:00:43]} 77. Rb5 {[%emt 0:00:15]} Rc7 {[%emt 0:00:18]} 78. Rf5 {[%emt 0:00:27]} Rc6 {[%emt 0:00:23]} 79. Rf4 {[%emt 0:00:18]} h6+ {[%emt 0:00:17]} 80. Kxh6 {[%emt 0:00:06]} Rxf6+ {[%emt 0:00:05]} 81. Rxf6+ {[%emt 0:00:03]} Kxf6 {[%emt 0:00:07]} 1/2-1/2

[Event "44th Chess Olympiad Open 2022"]
[Site "Chennai"]
[Date "2022.08.05"]
[Round "7.53"]
[White "Beukes, Dante M"]
[Black "Bagheri, Amir"]
[Result "0-1"]
[ECO "B12"]
[WhiteElo "2234"]
[BlackElo "2375"]
[Annotator "TA"]
[PlyCount "96"]
[EventDate "2022.07.29"]
[EventType "team-tourn"]
[EventCountry "IND"]
[SourceTitle "playchess.com"]
[Source "ChessBase"]
[SourceQuality "1"]
[WhiteTeam "Namibia"]
[BlackTeam "Monaco"]
[WhiteTeamCountry "NAM"]
[BlackTeamCountry "MNC"]
[TimeControl "40/5400+30:1800+30"]

{[%evp 10,96,21,7,30,30,27,30,20,17,22,9,25,0,53,0,18,9,20,14,21,0,51,33,41,36,41,23,19,20,26,15,6,25,29,0,30,21,18,18,22,22,26,6,11,10,12,-10,-5,-9,-10,-1,-5,-8,342,131,149,114,126,-8,0,0,0,0,0,-18,-23,-13,0,-8,-8,-8,-5,-6,-14,-153,-136,-156,-154,-235,-187,-851,-847,-835,-812,-1109,-1078,-1052,-827]} 1. e4 {[%emt 0:00:05]} c6 {[%emt 0:00:02]} 2. d4 {[%emt 0:00:16]} d5 {[%emt 0:00:04]} 3. e5 {[%emt 0:00:15]} Bf5 {[%emt 0:00:17]} 4. Nd2 {[%emt 0:00:32]} e6 {[%emt 0:00:23]} 5. Nb3 {[%emt 0:00:06]} Nd7 {[%emt 0:01:52]} 6. Nf3 {[%emt 0:00:08]} Ne7 {[%emt 0:03:40] B12: Caro-Kann: Advance Variation.} 7. Be2 {[%emt 0:00:07]} Nc8 {[%emt 0:02:39]} 8. O-O {[%emt 0:03:41]} Be7 {[%emt 0:00:06] White has an edge.} 9. Ne1 {[%emt 0:02:07]} O-O {[%emt 0:12:50]} 10. g4 {[%emt 0:07:19]} Bg6 {[%emt 0:00:43]} 11. f4 {[%emt 0:05:55] f5 is the strong threat.} f5 {[%emt 0:11:47]} (11... f6 $1 $11) 12. exf6 {[%emt 0:11:03] [#]} (12. Ng2 $14) 12... Bxf6 $146 {[%emt 0:02:24]} ({Predecessor:} 12... Nxf6 13. Nd3 Bd6 14. Ne5 Ne7 15. Nc5 Bxc5 16. dxc5 Be4 17. c3 Ng6 18. Qd4 Nxe5 19. Qxe5 {1-0 (47) Anuj,S (2383)-Roca Planas,E (2137) Sitges 2022}) 13. Bd3 {[%emt 0:08:39]} (13. Nf3 {keeps more tension.} Nd6 14. Ne5 Be4 15. c3) 13... Bxd3 {[%emt 0:00:33]} 14. Nxd3 {[%emt 0:00:17]} Re8 {[%emt 0:11:09]} 15. Qe2 {[%emt 0:08:34] Threatens to win with g5.} Nf8 {[%emt 0:02:24]} (15... a5 $11) 16. a4 {[%emt 0:09:04]} a5 {[%emt 0:00:26]} 17. c3 {[%emt 0:03:38]} Nd6 {[%emt 0:02:59]} 18. Nd2 {[%emt 0:01:58]} b6 {[%emt 0:03:01][%cal Bb7b6,Bb6b5,Bb5a4][%mdl 32]} 19. Nf3 {[%emt 0:02:52]} Ne4 {[%emt 0:08:37]} 20. Nf2 {[%emt 0:02:26]} Nd6 {[%emt 0:02:49]} 21. Be3 {[%emt 0:04:26]} Qc7 {[%emt 0:00:26]} 22. Nh1 {[%emt 0:05:06]} b5 {[%emt 0:07:20]} 23. Ng3 {[%emt 0:04:12]} Rab8 {[%emt 0:02:47]} 24. g5 {[%emt 0:05:29]} Bd8 {[%emt 0:03:19]} 25. Ne5 {[%emt 0:00:30]} Ng6 {[%emt 0:03:20]} 26. Qh5 {[%emt 0:03:10]} bxa4 {[%emt 0:09:27]} 27. Rf2 {[%emt 0:04:34]} Ne7 {[%emt 0:01:16]} 28. f5 {[%emt 0:02:25]} exf5 {[%emt 0:02:28]} 29. Bf4 $1 {[%emt 0:00:14]} g6 {[%emt 0:01:12]} 30. Qh6 {[%emt 0:00:59] Black must now prevent Re2.} Nec8 {[%emt 0:01:09][%cal Oa4a3]} 31. Rg2 {[%emt 0:02:16][%cal Og3h5]} ({Much weaker is} 31. Rxa4 Rb5 32. Qh3 c5 $17) 31... Rb7 $2 {[%emt 0:02:28][%mdl 8192] [#]} (31... Qg7 $11) 32. Nh5 $1 $18 {[%emt 0:01:58][%mdl 512] Hoping for Nf6+.} Re6 {[%emt 0:00:49] Against Nf6+} (32... gxh5 $2 33. g6 hxg6 34. Rxg6+ Qg7 35. Kh1 $18 (35. Rxg7+ Rxg7+ 36. Kh1 Ne4 $18)) (32... Rxe5 33. dxe5) 33. h4 {[%emt 0:01:12][%cal Bh2h4,Bh4h5][%mdl 32] aiming for Kh1.} c5 {[%emt 0:00:49]} 34. Nf6+ {[%emt 0:00:49]} ({White should play} 34. Kh1 $16) 34... Bxf6 $11 {[%emt 0:00:17]} 35. gxf6 {[%emt 0:00:05]} Rxf6 {[%emt 0:00:13] Strongly threatening ...cxd4.} 36. h5 {[%emt 0:00:14][%cal Rh5g6]} Qg7 {[%emt 0:01:22]} 37. hxg6 {[%emt 0:01:38]} Qxh6 {[%emt 0:00:45]} 38. Bxh6 {[%emt 0:00:04]} cxd4 {[%emt 0:00:13]} 39. gxh7+ {[%emt 0:00:55]} Kxh7 {[%emt 0:00:07]} 40. Bg5 {[%emt 0:00:06]} Re6 {[%emt 0:00:56]} 41. cxd4 {[%emt 0:03:30]} Nb6 {[%emt 0:04:28]} 42. Ra3 {[%emt 0:08:49]} (42. Kf2 $1 $11 {keeps the balance.} Rg7 43. Rh2+ Kg8 44. Bh6 Ne4+ 45. Ke2 Ng3+ 46. Kf3) 42... Rg7 $17 {[%emt 0:00:32]} 43. Kf1 {[%emt 0:04:36]} Kg8 {[%emt 0:12:57]} 44. Rh3 {[%emt 0:07:03]} (44. Bc1 $17 {was worth a try.}) 44... Nbc4 {[%emt 0:04:05] And now ...Nf7 would win.} 45. Nd7 $2 {[%emt 0:05:55]} (45. Rgh2 Nxe5 46. dxe5 Rxg5 47. Rh8+ Kf7 48. R2h7+ Rg7 49. exd6 Rxd6 50. Rh5) 45... Reg6 $19 {[%emt 0:03:34] Black is clearly winning.} ({Don't go for} 45... Rxd7 $2 46. Be7+ Rg6 47. Rxg6+ Kf7 48. Rxd6 Nxd6 49. Bxd6 Rxd6 50. Rh7+ Kg6 51. Ra7 $19) 46. Nf6+ {[%emt 0:02:33]} Kf7 {[%emt 0:00:20]} 47. Nh7 {[%emt 0:01:23]} Ne4 {[%emt 0:00:23][%cal Re4g5]} 48. Rh5 {[%emt 0:00:21]} Kg8 {[%emt 0:00:39] What a bad dream for White.  Weighted Error Value: White=0.40/Black=0.22 (precise)} 0-1